bitfinex-derivatives/quotes_BTCF0:USTF0_20250318
["timestamp","ask_amount","ask_price","bid_price","bid_amount"]
[1742278867999,0.0303,82792.0,82791.0,0.5215557]
[1742278868201,0.1510942,82792.0,82791.0,0.5215557]
[1742278868601,0.1510942,82792.0,82791.0,0.43256]
[1742278868899,0.1510942,82792.0,82791.0,0.12076]
[1742278869997,0.1510942,82792.0,82791.0,0.2415557]
[1742278870201,0.1510942,82792.0,82791.0,0.2729557]
[1742278871306,0.1811993,82790.0,82789.0,0.1207984]
[1742278871505,0.1811993,82790.0,82789.0,0.2431984]
[1742278871899,0.2137993,82790.0,82789.0,0.2431984]
[1742278877000,0.2137993,82790.0,82789.0,0.1224]
[1742278877504,0.2137993,82790.0,82789.0,0.2431986]
[1742278878400,0.2137993,82790.0,82789.0,0.1224]
[1742278879210,0.2137993,82790.0,82789.0,0.2431986]
[1742278879601,0.35826062,82790.0,82789.0,0.2431986]
[1742278881705,0.35826062,82790.0,82789.0,0.3041986]
[1742278883313,0.2137993,82790.0,82789.0,0.3041986]
[1742278883715,0.2137993,82790.0,82789.0,0.5841986]
[1742278885698,0.180398,82794.0,82793.0,0.1207928]
[1742278885908,0.180398,82794.0,82793.0,0.4007928]
[1742278886103,0.180398,82794.0,82793.0,0.4628928]
[1742278887405,0.0603943,82796.0,82795.0,0.1207884]
[1742278887607,0.0603943,82796.0,82795.0,0.4656884]
[1742278887805,0.0917943,82796.0,82795.0,0.3449]
[1742278888205,0.0917943,82796.0,82795.0,0.4656899]
[1742278889606,0.0917943,82796.0,82795.0,0.1535899]
[1742278891320,0.0917943,82796.0,82795.0,0.3087699]
[1742278892021,0.0314,82796.0,82795.0,0.5587699]
[1742278892411,0.180398,82799.0,82798.0,0.1207855]
[1742278892607,0.180398,82799.0,82798.0,0.7415855]
[1742278892821,0.180398,82799.0,82798.0,0.8355855]
[1742278893121,0.0306,82809.0,82800.0,0.0603909]
[1742278893316,0.3626,82810.0,82803.0,0.1207782]
[1742278893621,0.3626,82810.0,82803.0,0.5327782]
[1742278893622,0.3608,82810.0,82803.0,0.5327782]
[1742278893816,0.4815683,82810.0,82803.0,0.5327782]
[1742278894018,0.1207698,82809.0,82803.0,0.5327782]
[1742278894517,0.4815685,82810.0,82803.0,0.5327782]
[1742278894711,0.36252001,82810.0,82803.0,0.5327782]
[1742278894909,0.4815683,82810.0,82803.0,0.5327782]
[1742278895112,0.36252001,82810.0,82803.0,0.5327782]
[1742278895312,0.3608,82810.0,82803.0,0.5327782]
[1742278895513,0.1207724,82807.0,82803.0,0.5327782]
[1742278895719,0.0913847,82809.0,82803.0,0.5327782]
[1742278896320,0.14467364,82806.0,82805.0,0.1207753]
[1742278896519,0.14467364,82806.0,82805.0,0.3707753]
[1742278897019,0.14467364,82806.0,82805.0,0.4328753]
[1742278897629,0.14467364,82806.0,82805.0,0.7936753]
[1742278897825,1e-08,82806.0,82805.0,0.7936753]
[1742278898029,0.00018116,82812.0,82811.0,0.1207665]
[1742278898328,0.00018116,82812.0,82811.0,0.4924465]
[1742278898928,0.00018116,82812.0,82811.0,0.5565465]
[1742278899317,0.2168899,82817.0,82816.0,0.1207592]
[1742278899516,0.2168899,82817.0,82816.0,0.3707592]
[1742278899517,0.13703249,82817.0,82816.0,0.3707592]
[1742278899918,0.1207506,82822.0,82816.0,0.4365592]
[1742278900128,0.1207506,82822.0,82821.0,0.1207519]
[1742278900328,0.1207506,82822.0,82821.0,0.4923519]
[1742278900932,0.1207506,82822.0,82821.0,0.5581519]
[1742278901230,0.1207506,82822.0,82821.0,0.57006565]
[1742278901836,0.25778059,82824.0,82823.0,0.120749]
[1742278902134,0.25778059,82824.0,82823.0,0.350749]
[1742278902323,0.25778059,82824.0,82823.0,0.414549]
[1742278903028,0.28978059,82824.0,82823.0,0.414549]
[1742278904158,0.1207476,82824.0,82823.0,0.41528]
[1742278904526,0.1207476,82824.0,82823.0,0.536029]
[1742278906334,0.032,82825.0,82824.0,0.1207476]
[1742278906536,0.032,82825.0,82824.0,0.4132476]
[1742278907235,0.1527461,82825.0,82824.0,0.4132476]
[1742278907432,0.032,82825.0,82824.0,0.4132476]
[1742278907631,0.0603709,82828.0,82827.0,0.1207432]
[1742278907934,0.21209066,82830.0,82829.0,0.1207403]
[1742278908137,0.21209066,82830.0,82829.0,0.3707403]
[1742278908537,0.21209066,82830.0,82829.0,0.4654403]
[1742278909227,0.09135066,82830.0,82829.0,0.4654403]
[1742278909425,0.03098116,82830.0,82829.0,0.4654403]
[1742278910422,0.03098116,82830.0,82829.0,0.47453409]
[1742278911936,0.00018116,82830.0,82829.0,0.47453409]
[1742278913441,0.00018116,82830.0,82829.0,0.59545409]
[1742278914930,0.00018116,82830.0,82829.0,0.59537409]
[1742278918632,0.00018116,82830.0,82829.0,0.56307409]
[1742278919152,0.12091996,82830.0,82829.0,0.56307409]
[1742278919935,0.12091996,82830.0,82829.0,0.15196]
[1742278920439,0.20951996,82830.0,82829.0,0.2727003]
[1742278921328,0.20951996,82830.0,82829.0,0.5327003]
[1742278922931,0.1207505,82822.0,82821.0,0.00018116]
[1742278923840,0.1207505,82822.0,82816.0,0.151]
[1742278923841,0.1207578,82817.0,82816.0,0.1204]
[1742278924028,0.4815578,82817.0,82816.0,0.2411592]
[1742278924635,0.5387578,82817.0,82816.0,0.2411592]
[1742278925638,0.120768,82811.0,82810.0,0.1207671]
[1742278925837,0.120768,82811.0,82810.0,0.1204]
[1742278926135,0.1207694,82809.0,82808.0,0.91714116]
[1742278926341,0.4815694,82809.0,82808.0,0.91714116]
[1742278926743,0.5077694,82809.0,82808.0,0.94944116]
[1742278927244,0.5077694,82809.0,82808.0,0.03248116]
[1742278927948,0.5077694,82809.0,82799.0,0.0603916]
[1742278927949,0.1207913,82794.0,82793.0,0.28896731]
[1742278928147,0.1207913,82794.0,82793.0,0.8527796]
[1742278928643,0.1207913,82794.0,82793.0,0.53012011]
[1742278928848,0.1780913,82794.0,82793.0,0.53012011]
[1742278929049,0.1780913,82794.0,82793.0,0.2411528]
[1742278930247,0.1780913,82794.0,82793.0,0.2744528]
[1742278930443,0.0603929,82798.0,82795.0,0.1207869]
[1742278930649,0.0311,82799.0,82798.0,0.1207855]
[1742278930846,0.0311,82799.0,82798.0,0.4372855]
[1742278931045,0.1207832,82800.0,82799.0,0.1207826]
[1742278931240,0.1207832,82800.0,82799.0,0.4672826]
[1742278932246,0.00018116,82802.0,82801.0,0.1207811]
[1742278932446,0.00018116,82802.0,82801.0,0.5311811]
[1742278932652,0.00018116,82802.0,82801.0,0.5947811]
[1742278932849,0.18060457,82814.0,82813.0,0.1207636]
[1742278933044,0.18060457,82814.0,82813.0,0.5111636]
[1742278933951,0.21230457,82814.0,82813.0,0.5414636]
[1742278935046,0.33306667,82814.0,82813.0,0.5414636]
[1742278935750,0.0317,82814.0,82813.0,0.5414636]
[1742278936443,0.0317,82814.0,82813.0,0.55380304]
[1742278936640,0.4211764,82821.0,82813.0,0.55380304]
[1742278936641,0.3608,82821.0,82820.0,0.1207534]
[1742278936943,0.3941,82821.0,82820.0,0.5009534]
[1742278937138,0.00018116,82822.0,82821.0,0.1207519]
[1742278937350,0.00018116,82822.0,82821.0,0.4735519]
[1742278941850,0.0304,82838.0,82836.0,0.1207301]
[1742278942050,0.0304,82838.0,82836.0,0.2416501]
[1742278942246,0.4815286,82837.0,82836.0,0.2416501]
[1742278942658,0.4815286,82837.0,82836.0,0.2719501]
[1742278943056,0.5121286,82837.0,82836.0,0.2719501]
[1742278943961,0.5121286,82837.0,82836.0,0.3047501]
[1742278944148,0.3914,82837.0,82836.0,0.3047501]
[1742278944661,0.5121286,82837.0,82836.0,0.3047501]
[1742278946260,0.5121286,82837.0,82836.0,0.5447501]
[1742278946462,0.3914,82837.0,82836.0,0.5447501]
[1742278946757,0.5121286,82837.0,82836.0,0.5447501]
[1742278948754,0.5121286,82837.0,82836.0,0.42402]
[1742278948954,0.5121286,82837.0,82836.0,0.5447501]
[1742278951065,0.3914,82837.0,82836.0,0.5447501]
[1742278951264,0.5121286,82837.0,82836.0,0.5447501]
[1742278952168,0.3914,82837.0,82836.0,0.5447501]
[1742278952369,0.5121286,82837.0,82836.0,0.5447501]
[1742278952571,0.3914,82837.0,82836.0,0.5447501]
[1742278952773,0.3914,82837.0,82836.0,0.5782501]
[1742278953268,0.3608,82837.0,82836.0,0.5782501]
[1742278956268,0.4815286,82837.0,82836.0,0.59284589]
[1742278956471,0.4815286,82837.0,82836.0,0.55934589]
[1742278957059,0.5125286,82837.0,82836.0,0.55934589]
[1742278960868,0.5125286,82837.0,82836.0,0.55934121]
[1742278964188,0.5125286,82837.0,82836.0,0.52630121]
[1742278964482,0.5417286,82837.0,82836.0,0.52630121]
[1742278964979,0.5417286,82837.0,82836.0,0.55960121]
[1742278965181,0.5417286,82837.0,82836.0,0.52630121]
[1742278966282,0.5417286,82837.0,82836.0,0.52608359]
[1742278966984,0.5417286,82837.0,82836.0,0.40540359]
[1742278967876,0.3918,82837.0,82836.0,0.43780359]
[1742278968085,0.5125286,82837.0,82836.0,0.43780359]
[1742278969585,0.54182755,82837.0,82836.0,0.31707349]
[1742278971187,0.51262755,82837.0,82836.0,0.43780359]
[1742278972090,0.51262755,82837.0,82836.0,0.28467349]
[1742278972390,0.54182755,82837.0,82836.0,0.40540359]
[1742278972776,0.54182755,82837.0,82836.0,0.28467349]
[1742278972981,0.1207403,82829.0,82823.0,0.28896731]
[1742278973180,0.4815403,82829.0,82825.0,0.1207447]
[1742278973384,0.5426403,82829.0,82825.0,0.28896731]
[1742278973990,0.5436403,82829.0,82825.0,0.28896731]
[1742278976094,0.5436403,82829.0,82827.0,0.1207432]
[1742278976888,0.5436403,82829.0,82827.0,0.2414854]
[1742278977189,0.5436403,82829.0,82828.0,0.12092286]
[1742278977596,0.5436403,82829.0,82828.0,0.00018116]
[1742278978389,0.5436403,82829.0,82828.0,0.03328116]
[1742278979186,0.1207548,82819.0,82818.0,0.12]
[1742278979385,0.1207548,82819.0,82818.0,0.2741563]
[1742278979785,0.1207548,82819.0,82818.0,0.3082563]
[1742278979987,0.1517548,82819.0,82818.0,0.3082563]
[1742278980395,0.1527548,82819.0,82818.0,0.3082563]
[1742278980891,0.001,82819.0,82818.0,0.5682563]
[1742278984988,0.001,82819.0,82818.0,0.58225876]
[1742278988307,0.00018116,82827.0,82826.0,0.1207446]
[1742278988491,0.00018116,82827.0,82826.0,0.51430344]
[1742278988698,0.0317,82835.0,82834.0,0.120733]
[1742278988899,0.1524315,82835.0,82834.0,0.510293]
[1742278989502,0.1524315,82835.0,82834.0,0.575693]
[1742278990496,0.1534315,82835.0,82834.0,0.575693]
[1742278992704,0.1534315,82835.0,82834.0,0.422633]
[1742278992902,0.1534315,82835.0,82834.0,0.542313]
[1742278993494,0.1524315,82835.0,82834.0,0.542313]
[1742278994313,0.1524315,82835.0,82834.0,0.42154]
[1742278994508,0.1524315,82835.0,82834.0,0.542273]
[1742278995206,0.1524315,82835.0,82834.0,0.42154]
[1742278995600,0.1524315,82835.0,82834.0,0.542273]
[1742278995796,0.1207432,82827.0,82826.0,0.00018116]
[1742278996001,0.4815432,82827.0,82826.0,0.00018116]
[1742278996707,0.5458432,82827.0,82826.0,0.00018116]
[1742278997110,0.5458432,82827.0,82826.0,0.12092576]
[1742278999005,0.5458432,82827.0,82826.0,0.00018116]
[1742279008821,0.9066432,82827.0,82826.0,0.00018116]
[1742279011717,0.0603766,82821.0,82809.0,0.0603842]
[1742279011923,0.1207592,82816.0,82815.0,0.069]
[1742279012122,0.4815592,82816.0,82815.0,0.159]
[1742279012315,0.5820592,82816.0,82815.0,0.2797607]
[1742279014919,0.5820592,82816.0,82815.0,0.159]
[1742279015226,0.5820592,82816.0,82815.0,0.16]
[1742279016831,0.59405907,82816.0,82815.0,0.16]
[1742279017235,0.59405907,82816.0,82815.0,0.159]
[1742279017430,0.59405907,82816.0,82815.0,0.2807607]
[1742279017826,0.59405907,82816.0,82815.0,0.2797607]
[1742279018031,0.59405907,82816.0,82815.0,0.2807607]
[1742279018227,0.5481592,82816.0,82815.0,0.2807607]
[1742279018433,0.4815592,82816.0,82815.0,0.2807607]
[1742279018632,0.3608,82816.0,82815.0,0.2817607]
[1742279018836,0.3608,82816.0,82807.0,0.00018116]
[1742279018837,0.0603835,82811.0,82807.0,0.00018116]
[1742279019041,0.4815709,82808.0,82807.0,0.00018116]
[1742279019444,0.1207826,82800.0,82799.0,0.21692514]
[1742279019634,0.1207884,82796.0,82784.0,0.0117937]
[1742279019938,0.4915884,82796.0,82787.0,0.0346]
[1742279020143,0.4915884,82796.0,82791.0,0.0334]
[1742279020342,0.4915884,82796.0,82794.0,0.28896731]
[1742279020343,0.1187899,82795.0,82794.0,0.28896731]
[1742279020534,0.1974899,82795.0,82794.0,0.28896731]
[1742279021131,0.1974899,82795.0,82794.0,0.40975861]
[1742279021444,0.1532899,82795.0,82794.0,0.40975861]
[1742279021833,0.1542899,82795.0,82794.0,0.40975861]
[1742279022631,0.1562899,82795.0,82794.0,0.40975861]
[1742279023838,0.1217899,82795.0,82794.0,0.40975861]
[1742279024240,0.1217899,82795.0,82794.0,0.1207913]
[1742279024441,0.1217899,82795.0,82794.0,0.3707913]
[1742279024941,0.1237899,82795.0,82794.0,0.3707913]
[1742279026850,0.1577899,82795.0,82794.0,0.3707913]
[1742279027041,0.1577899,82795.0,82794.0,0.25]
[1742279027241,0.1909899,82795.0,82794.0,0.25]
[1742279027750,0.1909899,82795.0,82794.0,0.4375913]
[1742279029856,0.1909899,82795.0,82794.0,0.5562713]
[1742279029857,0.1577899,82795.0,82794.0,0.5562713]
[1742279030045,0.1577899,82795.0,82794.0,0.3062713]
[1742279030355,0.1908899,82795.0,82794.0,0.3062713]
[1742279030556,0.1908899,82795.0,82794.0,0.0668]
[1742279032151,0.1908899,82795.0,82794.0,0.1875913]
[1742279032355,0.1908899,82795.0,82794.0,0.0668]
[1742279032854,0.1908899,82795.0,82794.0,0.1875913]
[1742279033352,0.1577899,82795.0,82794.0,0.1875913]
[1742279033549,0.1896899,82795.0,82794.0,0.1875913]
[1742279038150,0.1577899,82795.0,82794.0,0.1875913]
[1742279038349,0.1237899,82795.0,82794.0,0.1875913]
[1742279038842,0.0603992,82790.0,82787.0,0.0604002]
[1742279039047,0.4816001,82788.0,82787.0,0.1812003]
[1742279039243,0.4816001,82788.0,82782.0,0.15232]
[1742279039244,0.1208015,82787.0,82786.0,0.12098386]
[1742279040357,0.1907015,82787.0,82786.0,0.07078116]
[1742279040546,0.1907015,82787.0,82786.0,0.19158416]
[1742279040752,0.1565015,82787.0,82786.0,0.19158416]
[1742279040951,0.1575015,82787.0,82786.0,0.07078116]
[1742279041158,0.120819,82775.0,82769.0,0.0604137]
[1742279041354,0.120819,82775.0,82774.0,1.03536]
[1742279041659,0.120819,82775.0,82774.0,1.1561805]
[1742279042254,0.120819,82775.0,82774.0,1.16820608]
[1742279042458,0.120819,82775.0,82774.0,1.20280608]
[1742279042859,0.120819,82775.0,82774.0,1.20480608]
[1742279044057,0.120819,82775.0,82774.0,1.48480608]
[1742279044961,0.120819,82775.0,82774.0,1.48680608]
[1742279045561,0.156419,82775.0,82774.0,1.48580608]
[1742279045963,0.156419,82775.0,82774.0,1.48380608]
[1742279046160,0.120819,82775.0,82774.0,1.48480608]
[1742279051356,0.120819,82775.0,82774.0,1.49911254]
[1742279051561,0.120819,82775.0,82774.0,1.49907254]
[1742279051756,0.120819,82775.0,82774.0,1.49907257]
[1742279053063,0.120819,82775.0,82774.0,1.48476608]
[1742279053657,0.120819,82775.0,82774.0,1.49900841]
[1742279054559,0.120815,82778.0,82777.0,0.1208147]
[1742279054868,0.4816117,82780.0,82779.0,0.1208132]
[1742279055067,0.4816117,82780.0,82779.0,0.3808132]
[1742279055263,0.4816117,82780.0,82779.0,0.4512132]
[1742279055460,0.4816117,82780.0,82779.0,0.46543681]
[1742279056166,0.06058496,82783.0,82782.0,0.1208088]
[1742279056167,0.00018116,82783.0,82782.0,0.1208088]
[1742279056472,0.00018116,82783.0,82782.0,0.32399888]
[1742279056667,0.12098856,82783.0,82782.0,0.3097688]
[1742279057178,0.15568856,82783.0,82782.0,0.18896]
[1742279057371,0.22428856,82783.0,82782.0,0.18896]
[1742279057976,0.22528856,82783.0,82782.0,0.3097688]
[1742279058469,0.22628856,82783.0,82782.0,0.3097688]
[1742279059965,0.22628856,82783.0,82782.0,0.18896]
[1742279060562,0.22628856,82783.0,82782.0,0.3097688]
[1742279061469,0.22628856,82783.0,82782.0,0.0354]
[1742279064062,0.0604055,82781.0,82776.0,0.11844]
[1742279064267,0.1208147,82778.0,82777.0,0.0359]
[1742279064467,0.4816147,82778.0,82777.0,0.0359]
[1742279065069,0.4816147,82778.0,82777.0,0.1567161]
[1742279065572,0.4816147,82778.0,82777.0,0.1913161]
[1742279065762,0.4816147,82778.0,82777.0,0.0705]
[1742279065960,0.4816147,82778.0,82777.0,0.1913161]
[1742279066173,0.4816147,82778.0,82777.0,0.0705]
[1742279067377,0.4816147,82778.0,82777.0,0.0359]
[1742279068171,0.5490147,82778.0,82777.0,0.0359]
[1742279070575,0.1208249,82771.0,82770.0,0.1182]
[1742279070777,0.4816249,82771.0,82770.0,0.1182]
[1742279071274,0.4816249,82771.0,82770.0,0.2719263]
[1742279071468,0.5506249,82771.0,82770.0,0.2719263]
[1742279071875,0.5506249,82771.0,82770.0,0.3045263]
[1742279072578,0.5506249,82771.0,82770.0,0.3065263]
[1742279072778,0.5506249,82771.0,82770.0,0.3085263]
[1742279074778,0.5506249,82771.0,82770.0,0.1877]
[1742279075078,0.5506249,82771.0,82770.0,0.0695]
[1742279075378,0.5506249,82771.0,82770.0,0.0369]
[1742279077577,0.56263178,82771.0,82770.0,0.0369]
[1742279078282,0.56263178,82771.0,82770.0,0.0329]
[1742279082679,0.56263178,82771.0,82766.0,0.00018116]
[1742279082680,0.1208307,82767.0,82766.0,0.00018116]
[1742279082880,0.1208453,82758.0,82757.0,0.120844]
[1742279083074,0.1208453,82758.0,82757.0,0.248924]
[1742279083884,0.1208453,82758.0,82757.0,0.26111353]
[1742279084082,0.1208453,82758.0,82757.0,0.33291353]
[1742279085178,0.1812638,82760.0,82759.0,0.1208424]
[1742279085382,0.0604185,82763.0,82762.0,0.1208366]
[1742279085680,0.4212179,82764.0,82763.0,0.1208366]
[1742279085681,0.4816355,82764.0,82763.0,0.1208366]
[1742279085876,0.4816355,82764.0,82763.0,0.3808366]
[1742279086487,0.4816355,82764.0,82763.0,0.4987966]
[1742279087788,0.4816351,82764.0,82763.0,0.4987966]
[1742279088088,0.4816351,82764.0,82763.0,0.4997966]
[1742279088591,0.3608,82764.0,82763.0,0.4997966]
[1742279089087,0.4816351,82764.0,82763.0,0.5007966]
[1742279089383,0.3608,82764.0,82763.0,0.5007966]
[1742279090477,0.4816351,82764.0,82763.0,0.5007966]
[1742279093883,0.3608,82764.0,82763.0,0.5007966]
[1742279094083,0.4816351,82764.0,82763.0,0.5007966]
[1742279094284,0.3608,82764.0,82763.0,0.5007966]
[1742279095991,0.00018116,82766.0,82765.0,0.1208336]
[1742279096187,0.00018116,82766.0,82765.0,0.3508336]
[1742279098695,0.00018116,82766.0,82765.0,0.3835336]
[1742279100308,0.00018116,82766.0,82765.0,0.4035336]
[1742279100495,0.18082107,82778.0,82777.0,0.1208161]
[1742279100693,0.3608,82784.0,82777.0,0.1208161]
[1742279100694,0.0604058,82781.0,82778.0,0.1812183]
[1742279100893,0.1208137,82779.0,82778.0,0.4212183]
[1742279101095,0.1208137,82779.0,82778.0,0.4546183]
[1742279101695,0.1208137,82779.0,82778.0,0.0334]
[1742279102088,0.1208249,82771.0,82762.0,0.3608]
[1742279102300,0.1208249,82771.0,82757.0,0.28896731]
[1742279102301,0.1208249,82771.0,82766.0,0.11768]
[1742279102887,0.1548249,82771.0,82766.0,0.11768]
[1742279103399,0.1548249,82771.0,82768.0,0.1208287]
[1742279103591,0.1880249,82771.0,82769.0,0.0321]
[1742279104400,0.1208453,82757.0,82756.0,1.0985036]
[1742279104593,0.1208453,82757.0,82756.0,1.1558847]
[1742279105003,0.1208453,82757.0,82756.0,1.2212847]
[1742279105395,0.1888453,82757.0,82756.0,1.2212847]
[1742279105802,0.1888453,82757.0,82756.0,1.2242847]
[1742279106195,0.1888453,82757.0,82756.0,1.1064847]
[1742279106592,0.1888453,82757.0,82756.0,0.003]
[1742279106797,0.1888453,82757.0,82754.0,0.28896731]
[1742279106798,0.1208482,82755.0,82754.0,0.28896731]
[1742279107100,0.1208482,82755.0,82749.0,0.3620392]
[1742279107101,0.1208555,82750.0,82749.0,0.3620392]
[1742279107407,0.4786555,82750.0,82749.0,0.3620392]
[1742279107604,0.5965755,82750.0,82749.0,0.3620392]
[1742279107905,0.120857,82749.0,82740.0,0.28956063]
[1742279108095,0.186857,82749.0,82741.0,0.0349]
[1742279109109,0.187857,82749.0,82741.0,0.0349]
[1742279109507,0.189857,82749.0,82741.0,0.0349]
[1742279111102,0.459857,82749.0,82741.0,0.0349]
[1742279111404,0.1208687,82741.0,82740.0,0.28956063]
[1742279111605,1.0045,82741.0,82735.0,0.26513561]
[1742279111796,0.1208935,82724.0,82708.0,0.58394709]
[1742279112002,0.1209111,82712.0,82708.0,0.58394709]
[1742279112203,0.1209169,82708.0,82707.0,0.7281614]
[1742279112397,0.4817169,82708.0,82707.0,0.006]
[1742279112597,0.1209184,82707.0,82706.0,0.36144072]
[1742279112909,0.1886184,82707.0,82706.0,0.03527275]
[1742279113610,0.4586184,82707.0,82706.0,0.03527275]
[1742279113905,0.1886184,82707.0,82706.0,0.03527275]
[1742279114405,0.1209257,82702.0,82701.0,0.43372887]
[1742279114606,0.2388857,82702.0,82701.0,0.43372887]
[1742279114811,0.2378857,82702.0,82701.0,0.43372887]
[1742279115615,0.25022412,82702.0,82701.0,0.43372887]
[1742279115909,0.2378857,82702.0,82701.0,0.43372887]
[1742279116207,0.1209271,82701.0,82700.0,0.105]
[1742279116399,0.1905271,82701.0,82700.0,0.105]
[1742279118030,0.1915271,82701.0,82700.0,0.105]
[1742279118506,0.25501689,82701.0,82700.0,0.105]
[1742279119908,0.37277689,82701.0,82700.0,0.105]
[1742279120504,0.64277689,82701.0,82700.0,0.105]
[1742279120813,0.37277689,82701.0,82700.0,0.105]
[1742279122209,0.25184979,82701.0,82691.0,0.0604709]
[1742279122412,0.1209403,82692.0,82691.0,0.1814112]
[1742279122804,0.1888403,82692.0,82691.0,0.1814112]
[1742279123609,0.1888403,82692.0,82691.0,0.002]
[1742279124002,0.1814272,82688.0,82687.0,0.0604731]
[1742279124504,0.120952,82685.0,82684.0,0.1209519]
[1742279125413,0.120952,82685.0,82684.0,0.1543519]
[1742279126114,0.120952,82685.0,82684.0,0.0334]
[1742279126312,0.151452,82685.0,82684.0,0.0334]
[1742279126508,0.186052,82685.0,82684.0,0.0334]
[1742279126707,0.183052,82685.0,82684.0,0.0334]
[1742279127106,0.183052,82685.0,82684.0,0.0374]
[1742279127416,0.183052,82685.0,82684.0,0.0404]
[1742279127616,0.183052,82685.0,82684.0,0.161352]
[1742279127816,0.2149261,82685.0,82684.0,0.002]
[1742279128117,0.2149261,82685.0,82684.0,0.0375]
[1742279130014,0.1814261,82685.0,82684.0,0.158452]
[1742279130219,0.1814261,82685.0,82682.0,0.02533502]
[1742279130416,0.1209516,82685.0,82684.0,0.120952]
[1742279131311,0.120952,82684.0,82683.0,0.0333]
[1742279131502,0.185752,82684.0,82683.0,0.0333]
[1742279131707,0.185752,82684.0,82683.0,0.1542535]
[1742279133309,0.2462287,82684.0,82681.0,0.09372949]
[1742279133513,0.2462287,82684.0,82683.0,0.1209535]
[1742279134008,0.2146287,82684.0,82683.0,0.1209535]
[1742279135617,0.1209535,82683.0,82682.0,0.0314]
[1742279135809,0.1533535,82683.0,82682.0,0.0314]
[1742279136009,0.1209564,82681.0,82680.0,0.1299004]
[1742279136411,0.1209564,82681.0,82680.0,0.3152583]
[1742279137413,0.1209564,82681.0,82680.0,0.1943004]
[1742279137818,0.1209564,82681.0,82680.0,0.3152583]
[1742279138211,0.1868564,82681.0,82680.0,0.1943004]
[1742279138621,0.1868564,82681.0,82680.0,0.3152583]
[1742279140225,0.1209564,82681.0,82680.0,0.5952583]
[1742279141011,0.1869564,82681.0,82680.0,0.5952583]
[1742279143430,0.24576318,82681.0,82680.0,0.5952583]
[1742279143629,0.24576318,82681.0,82680.0,0.49511308]
[1742279145030,0.24576318,82681.0,82680.0,0.5069207]
[1742279146226,0.24576318,82681.0,82680.0,0.40944762]
[1742279146425,0.24576318,82681.0,82680.0,0.53040552]
[1742279146826,0.24576318,82681.0,82680.0,0.54390552]
[1742279148726,0.24576318,82681.0,82680.0,0.53040552]
[1742279150737,0.24576318,82681.0,82680.0,0.54390552]
[1742279152239,0.24576318,82681.0,82680.0,0.41276552]
[1742279152435,0.24576318,82681.0,82680.0,0.12908762]
[1742279152638,0.24576318,82681.0,82680.0,0.25004552]
[1742279153639,0.47179712,82681.0,82680.0,0.25004552]
[1742279154732,0.47179712,82681.0,82680.0,0.26354552]
[1742279155429,0.40579712,82681.0,82680.0,0.53534552]
[1742279155629,0.1888418,82691.0,82690.0,0.1209432]
[1742279155932,0.1209447,82689.0,82688.0,0.0604723]
[1742279156136,0.1209447,82689.0,82688.0,0.4279923]
[1742279157645,0.1219447,82689.0,82688.0,0.4279923]
[1742279158138,0.1219447,82689.0,82688.0,0.36752]
[1742279158333,0.1219447,82689.0,82688.0,0.11752]
[1742279158838,0.1229447,82689.0,82688.0,0.2384662]
[1742279159237,0.1229447,82689.0,82688.0,0.2385462]
[1742279159942,0.1209491,82687.0,82686.0,0.120948]
[1742279160246,0.1209491,82687.0,82686.0,0.318548]
[1742279160439,0.1547491,82687.0,82686.0,0.318548]
[1742279162741,0.1557491,82687.0,82686.0,0.33250007]
[1742279163134,0.1557491,82687.0,82686.0,0.21155097]
[1742279164534,0.1557491,82687.0,82686.0,0.1976]
[1742279166336,0.1557491,82687.0,82686.0,0.3185491]
[1742279166944,0.1557491,82687.0,82686.0,0.1976]
[1742279167146,0.1557491,82687.0,82686.0,0.3185491]
[1742279167638,0.1557491,82687.0,82686.0,0.21159771]
[1742279167843,0.1557491,82687.0,82686.0,0.33254681]
[1742279169345,0.0348,82687.0,82686.0,0.33254681]
[1742279169538,0.1557476,82687.0,82686.0,0.38244681]
[1742279170046,0.0348,82687.0,82686.0,0.38244681]
[1742279170239,0.0348,82687.0,82686.0,0.38424681]
[1742279170947,0.1557476,82687.0,82686.0,0.38424681]
[1742279171350,0.1557476,82687.0,82686.0,0.38244681]
[1742279171540,0.1557476,82687.0,82686.0,0.21178836]
[1742279171934,0.1557476,82687.0,82686.0,0.33273789]
[1742279172138,0.1557476,82687.0,82686.0,0.21513789]
[1742279172341,0.1557476,82687.0,82686.0,0.33273789]
[1742279172538,0.1904476,82687.0,82686.0,0.33273789]
[1742279174239,0.24925194,82687.0,82686.0,0.33273789]
[1742279174548,0.24925194,82687.0,82686.0,0.3185491]
[1742279175346,0.24925194,82687.0,82686.0,0.1976]
[1742279175536,0.51925194,82687.0,82686.0,0.01396343]
[1742279175741,0.51925194,82687.0,82680.0,0.01180762]
[1742279175742,0.1209535,82683.0,82682.0,0.1209546]
[1742279175943,0.1209535,82683.0,82682.0,0.54247825]
[1742279176245,0.1877535,82683.0,82682.0,0.54247825]
[1742279176446,0.1877535,82683.0,82682.0,0.55777825]
[1742279176647,0.1877535,82683.0,82682.0,0.5438146]
[1742279176858,0.1877535,82683.0,82682.0,0.5456146]
[1742279177551,0.1877535,82683.0,82682.0,0.5284346]
[1742279177552,0.0668,82683.0,82682.0,0.5284346]
[1742279178056,0.12560434,82683.0,82682.0,0.5284346]
[1742279178244,0.12560434,82683.0,82682.0,0.5437346]
[1742279178449,0.24655784,82683.0,82682.0,0.5437346]
[1742279178648,0.24655784,82683.0,82682.0,0.55768648]
[1742279179149,0.24655784,82683.0,82682.0,0.3054152]
[1742279179454,0.24655784,82683.0,82682.0,0.4263692]
[1742279179754,0.24655784,82683.0,82682.0,0.41241732]
[1742279180153,0.24655784,82683.0,82682.0,0.39531732]
[1742279180543,0.24655784,82683.0,82682.0,0.40928452]
[1742279181054,0.24655784,82683.0,82682.0,0.42458452]
[1742279181355,0.12560434,82683.0,82682.0,0.42458452]
[1742279181546,0.12560434,82683.0,82682.0,0.41061732]
[1742279181746,0.24655784,82683.0,82682.0,0.41061732]
[1742279182148,0.12560434,82683.0,82682.0,0.41061732]
[1742279182347,0.12560434,82683.0,82682.0,0.29503732]
[1742279182545,0.12111708,82696.0,82693.0,0.1209388]
[1742279182846,0.36329532,82694.0,82693.0,0.5082588]
[1742279183651,0.65299701,82694.0,82693.0,0.5082588]
[1742279184059,0.65499701,82694.0,82693.0,0.5082588]
[1742279185460,0.65499701,82694.0,82693.0,0.38732]
[1742279185853,0.65499701,82694.0,82693.0,0.5082588]
[1742279187857,0.69009701,82694.0,82693.0,0.5082588]
[1742279188259,0.1936374,82694.0,82693.0,0.5082588]
[1742279188761,0.1936374,82694.0,82693.0,0.5222846]
[1742279189062,0.1936374,82694.0,82693.0,0.5548846]
[1742279189252,0.1936374,82694.0,82693.0,0.5222846]
[1742279190659,0.1936374,82694.0,82693.0,0.5082588]
[1742279191561,0.1936374,82694.0,82693.0,0.38732]